bitfinex/quotes_BTCUSD_20241018
["timestamp","ask_amount","ask_price","bid_price","bid_amount"]
[1729262657549,5.29945104,68500.0,68499.0,4.38444756]
[1729262657774,5.29945104,68500.0,68499.0,4.38544756]
[1729262658044,5.29945104,68500.0,68499.0,0.51613638]
[1729262658299,5.44841019,68500.0,68499.0,0.38384438]
[1729262658547,5.44841019,68500.0,68498.0,0.19137833]
[1729262658548,0.0793,68499.0,68498.0,0.19137833]
[1729262658776,0.0793,68499.0,68497.0,0.001656]
[1729262658777,0.2685,68498.0,68497.0,0.001656]
[1729262658994,0.41745915,68498.0,68497.0,0.001656]
[1729262660321,0.41745915,68498.0,68497.0,0.23120469]
[1729262660549,0.41745915,68498.0,68497.0,0.101656]
[1729262660995,0.41745915,68498.0,68497.0,0.23121808]
[1729262661472,5.02865104,68500.0,68497.0,0.19725333]
[1729262661705,5.02865104,68500.0,68498.0,0.1]
[1729262661957,5.02865104,68500.0,68499.0,4.45]
[1729262662169,5.02865104,68500.0,68499.0,4.5499]
[1729262664392,5.02865104,68500.0,68499.0,2.420983]
[1729262664619,5.02865104,68500.0,68499.0,1.390655]
[1729262664620,5.29495104,68500.0,68499.0,1.390655]
[1729262665052,5.29495104,68500.0,68499.0,1.394874]
[1729262665265,5.29495104,68500.0,68499.0,1.393874]
[1729262665699,5.29495104,68500.0,68499.0,1.58604831]
[1729262665963,5.29495104,68500.0,68499.0,1.394874]
[1729262666427,5.29495104,68500.0,68499.0,1.290655]
[1729262666864,5.29495104,68500.0,68499.0,1.289655]
[1729262667309,5.29495104,68500.0,68499.0,1.290655]
[1729262667310,5.29115104,68500.0,68499.0,1.290655]
[1729262667548,5.29115104,68500.0,68499.0,1.29284345]
[1729262667781,5.29115104,68500.0,68499.0,1.39284345]
[1729262668336,5.44011019,68500.0,68499.0,1.39284345]
[1729262669188,5.29115104,68500.0,68499.0,1.39284345]
[1729262670358,5.10705104,68500.0,68499.0,1.09752205]
[1729262670596,5.10705104,68500.0,68499.0,1.19752205]
[1729262670811,5.10705104,68500.0,68499.0,5.64742205]
[1729262671023,5.02485104,68500.0,68499.0,5.64742205]
[1729262671480,5.02485104,68500.0,68499.0,4.45410505]
[1729262672062,5.02485104,68500.0,68499.0,4.45576105]
[1729262673164,5.02485104,68500.0,68499.0,2.77049545]
[1729262673553,5.02485104,68500.0,68499.0,2.35712645]
[1729262674237,5.02485104,68500.0,68499.0,2.25208045]
[1729262674463,5.02485104,68500.0,68499.0,1.66541445]
[1729262674464,5.25611019,68500.0,68499.0,1.66541445]
[1729262674715,5.25611019,68500.0,68499.0,0.00484445]
[1729262674948,5.44771019,68500.0,68499.0,0.19596086]
[1729262675199,5.44771019,68500.0,68499.0,0.00484445]
[1729262675644,5.44771019,68500.0,68498.0,0.1]
[1729262675645,0.1053,68496.0,68494.0,0.1294296]
[1729262675908,0.1053,68496.0,68493.0,0.1079048]
[1729262675909,0.2891,68494.0,68493.0,0.1079048]
[1729262676073,0.2891,68494.0,68489.0,0.0431825]
[1729262676074,0.17195915,68494.0,68489.0,0.0431825]
[1729262676369,0.023,68489.0,68479.0,0.21904685]
[1729262676594,0.0963,68487.0,68486.0,0.21904685]
[1729262676807,0.0733,68487.0,68479.0,0.21904685]
[1729262677240,0.0733,68487.0,68477.0,0.001656]
[1729262677241,0.14895915,68486.0,68480.0,1.402001]
[1729262677460,0.14895915,68486.0,68477.0,0.001656]
[1729262677674,0.14895915,68486.0,68479.0,0.1]
[1729262677852,0.14895915,68486.0,68481.0,0.1]
[1729262678106,0.14283615,68486.0,68481.0,0.1]
[1729262678325,0.0733,68487.0,68481.0,0.1]
[1729262679221,0.0733,68487.0,68471.0,0.1]
[1729262679451,0.0733,68487.0,68472.0,4.4499]
[1729262679880,0.21904685,68486.0,68472.0,4.4499]
[1729262680315,0.21914685,68486.0,68472.0,4.4499]
[1729262681225,0.21776836,68486.0,68473.0,0.1]
[1729262681507,0.0001,68486.0,68474.0,4.4499]
[1729262681714,0.0001,68486.0,68478.0,0.1]
[1729262681925,0.0001,68486.0,68479.0,4.4528202]
[1729262682136,0.21904685,68485.0,68480.0,4.5528202]
[1729262682359,0.0001,68486.0,68482.0,0.1]
[1729262682560,0.0001,68486.0,68484.0,0.1]
[1729262682791,0.0001,68486.0,68485.0,1.790198]
[1729262683010,0.0001,68486.0,68485.0,0.45442381]
[1729262683233,0.0001,68486.0,68485.0,0.20763921]
[1729262683460,0.0001,68486.0,68485.0,0.1]
[1729262683758,0.14905915,68486.0,68485.0,0.1]
[1729262683977,0.14905915,68486.0,68481.0,0.08780158]
[1729262684184,0.14895915,68485.0,68481.0,0.001656]
[1729262684402,0.14895915,68485.0,68484.0,0.00218903]
[1729262685781,0.41105915,68485.0,68484.0,0.00218903]
[1729262688022,0.41105915,68485.0,68484.0,0.04525426]
[1729262688917,0.41115915,68485.0,68484.0,0.04525426]
[1729262689160,0.41115915,68485.0,68484.0,0.00218903]
[1729262690718,0.41115915,68485.0,68479.0,0.10763921]
[1729262690719,0.023,68484.0,68476.0,0.10763921]
[1729262690910,0.023,68476.0,68460.0,0.001654]
[1729262691157,0.14895915,68465.0,68462.0,0.21904685]
[1729262691367,0.023,68470.0,68462.0,0.21904685]
[1729262691603,0.023,68470.0,68460.0,0.001654]
[1729262691817,0.14895915,68465.0,68460.0,0.001654]
[1729262692033,0.1844,68464.0,68460.0,0.001654]
[1729262692243,0.14895915,68463.0,68460.0,0.001654]
[1729262699937,0.14895915,68463.0,68462.0,0.00219015]
[1729262700707,0.21904685,68506.0,68463.0,0.1]
[1729262700930,0.21904685,68506.0,68469.0,0.08597473]
[1729262700931,0.21904685,68471.0,68469.0,0.08597473]
[1729262701164,0.14895915,68482.0,68472.0,0.1]
[1729262701400,0.14895915,68482.0,68467.0,0.12908988]
[1729262701401,0.21904685,68475.0,68474.0,0.1]
[1729262701622,0.14895915,68482.0,68474.0,1.054049]
[1729262701866,0.14895915,68482.0,68478.0,0.1429975]
[1729262702095,0.21904685,68481.0,68480.0,0.0429975]
[1729262702313,0.14895915,68482.0,68480.0,0.14301338]
[1729262702530,0.14895915,68482.0,68481.0,0.04300884]
[1729262703011,0.0802,68481.0,68474.0,0.14250884]
[1729262703229,0.14895915,68480.0,68474.0,0.1]
[1729262703913,0.14895915,68480.0,68476.0,0.00218947]
[1729262704386,0.368006,68479.0,68476.0,0.00218947]
[1729262704610,0.0802,68481.0,68476.0,0.00218947]
[1729262704611,0.1986,68477.0,68476.0,0.00218947]
[1729262704837,0.34755915,68477.0,68476.0,0.00218947]
[1729262707169,0.0001,68485.0,68476.0,0.00218953]
[1729262707389,0.0001,68485.0,68480.0,0.06461499]
[1729262707390,0.368006,68484.0,68480.0,0.06461499]
[1729262707631,0.14895915,68484.0,68480.0,0.16461499]
[1729262707874,0.0001,68485.0,68481.0,2.64626899]
[1729262708116,0.0001,68485.0,68484.0,0.06455964]
[1729262708326,0.0001,68485.0,68484.0,0.08615332]
[1729262708567,0.0001,68485.0,68484.0,0.1]
[1729262709202,0.0001,68485.0,68484.0,0.20769165]
[1729262709451,0.0001,68485.0,68482.0,0.1]
[1729262709667,0.0001,68485.0,68481.0,0.20552998]
[1729262709668,0.0001,68485.0,68484.0,1.51450698]
[1729262709887,0.0001,68485.0,68484.0,5.835177]
[1729262710530,1.42e-05,68485.0,68484.0,4.830843]
[1729262710749,1.42e-05,68485.0,68484.0,5.02165915]
[1729262711191,1.42e-05,68485.0,68484.0,4.830843]
[1729262711621,0.00059966,68486.0,68485.0,0.1]
[1729262711832,0.00059966,68486.0,68485.0,4.5499]
[1729262712067,0.00059966,68486.0,68485.0,4.57673471]
[1729262713864,0.00059966,68486.0,68485.0,4.36905971]
[1729262714313,0.00059966,68486.0,68485.0,4.35240471]
[1729262715639,0.00059966,68486.0,68485.0,4.50136386]
[1729262717908,0.00023971,68486.0,68485.0,4.50136386]
[1729262718140,0.00023971,68486.0,68485.0,4.5286504]
[1729262718791,0.00023971,68486.0,68485.0,4.5306504]
[1729262719003,0.00023971,68486.0,68485.0,4.5536504]
[1729262719214,0.00023971,68486.0,68485.0,4.5516504]
[1729262719422,0.00023971,68486.0,68485.0,4.66955542]
[1729262720301,0.00023971,68486.0,68485.0,4.69684196]
[1729262720529,2.95e-05,68486.0,68485.0,4.69684196]
[1729262721515,2.95e-05,68486.0,68485.0,4.52436386]
[1729262721759,2.95e-05,68486.0,68485.0,1.25852371]
[1729262721959,2.95e-05,68486.0,68485.0,1.231689]
[1729262722433,2.95e-05,68486.0,68485.0,1.38064815]
[1729262722641,2.95e-05,68486.0,68485.0,1.58875369]
[1729262723063,5.02491104,68500.0,68490.0,0.00218838]
[1729262723270,0.21904685,68492.0,68491.0,4.5499]
[1729262723486,5.02491104,68500.0,68491.0,5.6441774]
[1729262723735,5.02491104,68500.0,68498.0,0.22907157]
[1729262723948,5.02491104,68500.0,68498.0,1.1943441]
[1729262724167,5.02491104,68500.0,68499.0,0.1]
[1729262724377,5.02491104,68500.0,68499.0,0.424595]
[1729262724590,5.02491104,68500.0,68499.0,0.53213616]
[1729262724855,5.02491104,68500.0,68499.0,0.55312423]
[1729262725282,5.02491104,68500.0,68499.0,0.445583]
[1729262726137,5.02491104,68500.0,68499.0,0.55311612]
[1729262726350,5.02491104,68500.0,68499.0,0.445583]
[1729262726797,5.02491104,68500.0,68499.0,3.7863117]
[1729262727014,5.02491104,68500.0,68499.0,6.06548385]
[1729262727230,5.02491104,68500.0,68499.0,6.09245915]
[1729262728331,5.02491104,68500.0,68499.0,6.12165915]
[1729262729465,5.02491104,68500.0,68499.0,6.09245915]
[1729262730792,5.02491104,68500.0,68499.0,6.12165915]
[1729262731494,5.02491104,68500.0,68499.0,6.09245915]
[1729262731719,5.00982317,68500.0,68499.0,6.12165915]
[1729262731957,4.99933815,68500.0,68499.0,5.9435]
[1729262732188,4.99145102,68500.0,68499.0,5.233929]
[1729262732423,4.99145102,68500.0,68499.0,5.2069537]
[1729262732656,4.96137103,68500.0,68499.0,5.33575359]
[1729262733123,4.96137103,68500.0,68499.0,5.48471274]
[1729262733375,4.96137103,68500.0,68499.0,5.35591285]
[1729262734073,4.96137103,68500.0,68499.0,5.36710295]
[1729262734297,4.96137103,68500.0,68499.0,5.33573288]
[1729262735697,4.96137103,68500.0,68499.0,5.0140537]
[1729262735920,4.96137103,68500.0,68499.0,3.6223657]
[1729262736158,4.96137103,68500.0,68499.0,1.4475577]
[1729262736433,4.96137103,68500.0,68499.0,0.13233]
[1729262736645,4.96137103,68500.0,68499.0,0.19674528]
[1729262736848,4.96137103,68500.0,68499.0,0.13233]
[1729262737287,4.96137103,68500.0,68499.0,0.23233]
[1729262737749,4.96137103,68500.0,68499.0,0.11233]
[1729262737971,4.96137103,68500.0,68496.0,0.08590491]
[1729262737972,4.96137103,68500.0,68496.0,0.04295931]
[1729262739315,4.96137103,68500.0,68499.0,0.00218856]
[1729262739799,5.11033018,68500.0,68499.0,0.00218856]
[1729262740035,5.39883018,68500.0,68499.0,0.00218856]
[1729262740331,0.0824,68497.0,68486.0,0.21904685]
[1729262740541,0.14895915,68489.0,68486.0,0.21904685]
[1729262740769,0.1161,68488.0,68486.0,0.21904685]
[1729262741001,0.1161,68488.0,68485.0,0.001658]
[1729262741002,0.14895915,68487.0,68485.0,0.001658]
[1729262741231,0.14895915,68487.0,68486.0,0.04455501]
[1729262741470,0.078,68488.0,68486.0,0.04455501]
[1729262741718,0.078,68488.0,68485.0,0.001658]
[1729262741952,0.078,68488.0,68487.0,0.1]
[1729262742172,0.078,68488.0,68486.0,0.508524]
[1729262742173,0.078,68488.0,68486.0,0.04295931]
[1729262742628,0.078,68488.0,68486.0,0.04308545]
[1729262743084,0.14895915,68487.0,68486.0,0.04308545]
[1729262743328,0.14895915,68487.0,68485.0,0.04476664]
[1729262743767,0.14895915,68487.0,68486.0,0.04310864]
[1729262744032,0.14895915,68487.0,68485.0,0.1878289]
[1729262744276,0.0001,68488.0,68487.0,0.1]
[1729262744504,0.0001,68488.0,68487.0,0.1862629]
[1729262745254,0.0001,68488.0,68487.0,3.180073]
[1729262745450,0.0001,68488.0,68487.0,5.68576608]
[1729262745694,0.0001,68488.0,68487.0,5.8754252]
[1729262745923,0.0001,68488.0,68487.0,5.68457012]
[1729262747275,0.0001,68488.0,68487.0,5.71154542]
[1729262747927,0.0001,68488.0,68487.0,4.8563082]
[1729262748171,7.96e-06,68488.0,68487.0,4.4203412]
[1729262749330,7.96e-06,68488.0,68487.0,3.0161472]
[1729262749581,0.22476711,68488.0,68487.0,0.1991813]
[1729262749819,0.22476711,68488.0,68487.0,0.0269753]
[1729262750057,0.025,68486.0,68485.0,0.001658]
[1729262750285,0.17195915,68486.0,68485.0,0.001658]
[1729262750726,0.002,68483.0,68477.0,0.04318763]
[1729262750938,0.002,68483.0,68476.0,0.06478145]
[1729262750939,0.14895915,68478.0,68474.0,0.04320634]
[1729262751171,0.023,68474.0,68461.0,0.10793823]
[1729262751440,0.14895915,68470.0,68465.0,0.21904685]
[1729262751693,0.0758,68479.0,68465.0,0.21904685]
[1729262751694,0.00202708,68511.0,68474.0,0.1998]
[1729262751903,0.00202708,68511.0,68487.0,0.002]
[1729262752114,0.00202708,68511.0,68475.0,3.386643]
[1729262752115,0.00202708,68511.0,68483.0,0.002]
[1729262752326,0.00202708,68511.0,68480.0,1.286701]
[1729262752327,0.00202708,68511.0,68484.0,0.13629]
[1729262752546,0.00202708,68511.0,68474.0,0.2018]
[1729262752547,0.0764,68494.0,68483.0,0.10784622]
[1729262752772,0.0764,68494.0,68482.0,0.1]
[1729262753033,0.0764,68494.0,68480.0,0.1]
[1729262753394,0.0764,68494.0,68479.0,0.1]
[1729262753607,0.14895915,68487.0,68479.0,0.1]
[1729262754155,0.21904685,68486.0,68479.0,0.1]
[1729262754402,0.21904685,68486.0,68478.0,0.1]
[1729262754617,0.14895915,68485.0,68473.0,0.10784622]
[1729262754836,0.14895915,68485.0,68472.0,0.10784622]
[1729262755255,0.14895915,68485.0,68474.0,0.001658]
[1729262755755,0.14895915,68485.0,68474.0,0.00992478]
[1729262757750,0.14895915,68485.0,68474.0,0.001658]
[1729262759793,0.14895915,68485.0,68480.0,0.00218943]
[1729262760210,0.14905915,68485.0,68480.0,0.00218943]
[1729262762004,0.0001,68485.0,68483.0,0.04315737]
[1729262762457,0.368006,68484.0,68483.0,0.04315737]
[1729262762691,0.14895915,68484.0,68483.0,0.04315007]
[1729262762891,0.14895915,68484.0,68482.0,0.1]
[1729262763331,0.14895915,68484.0,68480.0,0.00218943]
[1729262763552,0.0794,68482.0,68480.0,0.00218943]
[1729262763776,0.023,68480.0,68474.0,0.001658]
[1729262764029,0.0001,68485.0,68463.0,0.04315181]
[1729262764030,0.2789,68474.0,68463.0,0.04315181]
[1729262764236,0.023,68472.0,68460.0,0.22070085]
[1729262764449,0.14895915,68468.0,68460.0,0.001654]
[1729262764997,0.2559,68474.0,68460.0,0.001654]
[1729262764998,0.21904685,68483.0,68467.0,0.10787953]
[1729262765224,0.21904685,68470.0,68468.0,2.576413]
[1729262765459,0.21904685,68483.0,68468.0,1.22891384]
[1729262765761,0.21904685,68483.0,68482.0,0.08620259]
[1729262766003,0.21904685,68483.0,68482.0,0.20775324]
[1729262766234,0.21904685,68483.0,68482.0,0.603518]
[1729262766472,0.21904685,68483.0,68482.0,0.29128]
[1729262766700,0.0001,68485.0,68482.0,0.29128]
[1729262766919,0.0001,68485.0,68484.0,0.06462705]
[1729262767137,0.0001,68485.0,68483.0,0.1]
[1729262767138,0.0808,68484.0,68483.0,0.1]
[1729262767391,0.0808,68484.0,68481.0,0.04308938]
[1729262767606,0.023,68483.0,68476.0,0.04310743]
[1729262768065,0.023,68483.0,68474.0,0.06631914]
[1729262768066,0.023,68483.0,68474.0,0.001658]
[1729262769401,0.14895915,68482.0,68474.0,0.001658]
[1729262769613,0.368006,68482.0,68474.0,0.001658]
[1729262770789,0.14895915,68482.0,68474.0,0.001658]
[1729262771253,0.14895915,68482.0,68474.0,0.04476543]
[1729262771467,0.14895915,68482.0,68475.0,0.04310743]
[1729262771720,0.000929,68485.0,68484.0,0.002]
[1729262771934,0.000929,68485.0,68484.0,3.50497415]
[1729262772182,0.000929,68485.0,68484.0,5.01148144]
[1729262772392,0.000929,68485.0,68484.0,5.97654895]
[1729262772393,3.746e-05,68485.0,68484.0,5.97654895]
[1729262772642,3.746e-05,68485.0,68484.0,6.00396013]
[1729262773286,3.746e-05,68485.0,68484.0,4.48112898]
[1729262773498,3.746e-05,68485.0,68484.0,3.3671108]
[1729262774193,3.746e-05,68485.0,68484.0,3.40846976]
[1729262774411,3.746e-05,68485.0,68484.0,3.56045945]
[1729262775288,3.746e-05,68485.0,68484.0,3.4115003]
[1729262775520,3.746e-05,68485.0,68484.0,3.17812576]
[1729262775732,3.746e-05,68485.0,68484.0,2.64761776]
[1729262775969,3.746e-05,68485.0,68480.0,0.12916522]
[1729262776212,3.746e-05,68485.0,68484.0,0.10767184]
[1729262776440,3.746e-05,68485.0,68474.0,0.003658]
[1729262776441,3.746e-05,68485.0,68483.0,0.10767184]
[1729262776650,3.746e-05,68485.0,68483.0,0.08617569]
[1729262776651,0.21904685,68484.0,68483.0,0.08617569]
[1729262776892,0.14895915,68484.0,68482.0,0.08617569]
[1729262777123,0.14895915,68484.0,68474.0,0.001658]
[1729262777124,3.746e-05,68485.0,68483.0,0.04528666]
[1729262777361,3.746e-05,68485.0,68483.0,0.00218919]
[1729262778265,3.746e-05,68485.0,68476.0,0.04309747]
[1729262778550,3.746e-05,68485.0,68477.0,0.04309747]
[1729262778760,0.14895915,68484.0,68483.0,0.00218964]
[1729262779443,0.17195915,68484.0,68483.0,0.00218964]
[1729262779654,0.36665915,68484.0,68483.0,0.00218964]
[1729262781656,0.36665915,68484.0,68477.0,0.001658]
[1729262781866,0.14895915,68482.0,68477.0,0.001658]
[1729262782325,0.023,68481.0,68477.0,0.001658]
[1729262782538,0.14895915,68480.0,68477.0,0.001658]
[1729262782990,0.17195915,68480.0,68479.0,0.00218973]
[1729262783225,0.14895915,68480.0,68479.0,0.00218973]
[1729262783443,0.14895915,68480.0,68479.0,0.0452872]
[1729262783654,0.14895915,68480.0,68479.0,0.00218973]
[1729262784089,3.746e-05,68485.0,68479.0,0.00218973]
[1729262784310,3.746e-05,68485.0,68484.0,0.59735691]
[1729262784549,3.746e-05,68485.0,68484.0,0.48942541]
[1729262785455,3.746e-05,68485.0,68484.0,0.61893502]
[1729262785676,3.746e-05,68485.0,68484.0,0.48942541]
[1729262785892,3.746e-05,68485.0,68484.0,0.61893502]
[1729262786152,3.746e-05,68485.0,68484.0,0.48942541]
[1729262787036,1.00003746,68485.0,68484.0,0.48942541]
[1729262788181,1.14899661,68485.0,68480.0,0.12950961]
[1729262788395,0.14895915,68484.0,68483.0,0.08637623]
[1729262788614,0.14895915,68484.0,68482.0,0.08637623]
[1729262788848,0.35857248,68484.0,68483.0,0.0431936]
[1729262789091,0.35857248,68484.0,68479.0,0.08856596]
[1729262789092,0.023,68483.0,68479.0,0.04538333]
[1729262789328,0.22475915,68484.0,68479.0,0.04538333]
[1729262789329,0.023,68481.0,68479.0,0.00218973]
[1729262789574,0.023,68480.0,68479.0,0.00218973]
[1729262789789,0.023,68481.0,68474.0,0.001658]
[1729262790017,0.023,68474.0,68465.0,0.0432263]
[1729262790243,0.023,68467.0,68464.0,0.0432263]
[1729262790477,0.14895915,68466.0,68461.0,0.0432263]
[1729262790835,0.14895915,68466.0,68443.0,0.10810239]
[1729262790836,0.1,68459.0,68443.0,0.10810239]
[1729262791020,0.1,68459.0,68428.0,0.001656]
[1729262791021,0.24878043,68454.0,68434.0,0.21904685]
[1729262791329,0.468849,68458.0,68434.0,0.21904685]
[1729262791330,0.023,68453.0,68434.0,0.21904685]
[1729262791536,0.34204685,68459.0,68434.0,0.21904685]
[1729262791752,0.34204685,68459.0,68428.0,0.001656]
[1729262791753,0.24204685,68459.0,68428.0,0.001656]
[1729262792184,0.24204685,68459.0,68439.0,0.38982692]
[1729262792413,0.14895915,68440.0,68437.0,0.38982692]
[1729262793345,0.023,68439.0,68428.0,0.001656]
[1729262793586,0.14895915,68433.0,68428.0,0.001656]
[1729262793835,0.17195915,68431.0,68428.0,0.001656]
[1729262794694,0.14895915,68431.0,68428.0,0.001656]
[1729262795396,0.14905915,68431.0,68428.0,0.001656]
[1729262796073,0.17205915,68431.0,68428.0,0.001656]
[1729262797470,0.26486506,68431.0,68428.0,0.001656]
[1729262797994,0.24765915,68431.0,68428.0,0.001656]
[1729262798659,0.17205915,68431.0,68428.0,0.001656]
[1729262800259,0.14905915,68431.0,68430.0,0.00577096]
[1729262800439,0.14905915,68431.0,68430.0,0.001656]
[1729262801860,0.17205915,68431.0,68430.0,0.001656]
[1729262804633,0.14905915,68431.0,68430.0,0.001656]
[1729262807389,0.17205915,68431.0,68430.0,0.001656]
[1729262813115,0.14905915,68431.0,68430.0,0.001656]
[1729262816561,0.14905915,68431.0,68430.0,0.2506409]
[1729262823051,0.14905915,68431.0,68430.0,0.001656]
[1729262823278,0.18696507,68431.0,68430.0,0.001656]
[1729262823523,0.24805915,68431.0,68430.0,0.001656]
[1729262823957,0.17205915,68431.0,68430.0,0.001656]
[1729262827551,0.35525915,68431.0,68430.0,0.001656]
[1729262829084,0.60428355,68431.0,68430.0,0.001656]
[1729262829786,0.82621555,68431.0,68430.0,0.001656]
[1729262830001,0.9751747,68431.0,68430.0,0.001656]
[1729262830274,0.1917,68428.0,68401.0,0.00219248]
[1729262830509,0.14895915,68416.0,68401.0,0.00219248]
[1729262830739,0.17195915,68416.0,68401.0,0.00219248]
[1729262830950,0.22867311,68416.0,68401.0,0.00219248]
[1729262831400,0.30447311,68416.0,68401.0,0.00219248]
[1729262831870,0.45063711,68416.0,68401.0,0.00219248]
[1729262832138,0.30447311,68416.0,68401.0,0.00219248]
[1729262832348,0.45063711,68416.0,68401.0,0.00219248]
[1729262832614,0.55063711,68416.0,68401.0,0.00219248]
[1729262833724,0.5181924,68414.0,68397.0,0.001658]
[1729262833960,0.0784,68400.0,68397.0,0.001658]
[1729262834196,0.2720244,68381.0,68380.0,0.18564163]
[1729262834415,0.2720244,68381.0,68365.0,0.26228392]
[1729262834416,0.023,68380.0,68365.0,0.21904685]
[1729262834664,0.023,68380.0,68357.0,0.08647415]
[1729262834665,0.023,68365.0,68354.0,0.04323707]
[1729262834869,0.023,68365.0,68360.0,0.00219376]
[1729262835102,0.17195915,68362.0,68360.0,0.00219376]
[1729262835329,0.17195915,68362.0,68346.0,0.06485561]
[1729262835330,0.17195915,68362.0,68350.0,0.04323707]
[1729262835553,0.17195915,68362.0,68346.0,0.001658]
[1729262835845,0.17195915,68362.0,68356.0,0.0021939]
[1729262836277,0.17205915,68362.0,68356.0,0.0021939]
[1729262836717,0.14905915,68362.0,68356.0,0.0021939]
[1729262837185,0.14905915,68362.0,68361.0,0.002658]
[1729262837623,0.14905915,68362.0,68361.0,0.001658]
[1729262838078,0.14905915,68362.0,68361.0,0.002658]
[1729262838561,1e-06,68362.0,68361.0,0.002658]
[1729262838764,1e-06,68362.0,68361.0,0.004658]
[1729262838983,0.14896015,68362.0,68361.0,0.002658]
[1729262839661,1e-06,68362.0,68361.0,0.002658]
[1729262839878,1e-06,68362.0,68361.0,0.285058]
[1729262840119,1e-06,68362.0,68361.0,0.29326148]
[1729262840328,0.21235185,68370.0,68367.0,0.002]
[1729262840543,0.21904685,68377.0,68373.0,0.002]
[1729262840726,0.21904685,68377.0,68376.0,0.002]
[1729262840965,0.21904685,68377.0,68375.0,0.002]
[1729262841175,0.21904685,68385.0,68375.0,0.002]
[1729262841388,0.21904685,68385.0,68377.0,0.002]
[1729262841389,0.368006,68385.0,68377.0,0.002]
[1729262841613,0.21904685,68385.0,68384.0,0.002]
[1729262841831,0.21904685,68399.0,68390.0,0.0763]
[1729262842345,0.21904685,68399.0,68391.0,0.10219235]
[1729262843083,0.368006,68392.0,68391.0,0.10219235]
[1729262843323,0.21904685,68410.0,68391.0,0.00219235]
[1729262843568,0.21904685,68399.0,68391.0,0.00219235]
[1729262843817,0.14895915,68409.0,68398.0,0.002]
[1729262844062,0.14895915,68409.0,68391.0,0.10219235]
[1729262844063,0.21904685,68403.0,68402.0,0.002]
[1729262844313,0.0001,68416.0,68393.0,0.04306763]
[1729262844314,0.0001,68416.0,68399.0,0.1]
[1729262844549,0.0001,68416.0,68398.0,0.191]
[1729262844550,0.21904685,68407.0,68406.0,0.002]
[1729262844802,0.0001,68416.0,68409.0,0.002]
[1729262845031,0.0001,68416.0,68404.0,0.04306763]
[1729262845032,0.21904685,68410.0,68404.0,0.04303579]
[1729262845231,0.14895915,68410.0,68405.0,0.002]
[1729262845686,0.14895915,68410.0,68408.0,0.002]
[1729262845916,0.14895915,68410.0,68404.0,0.04303579]
[1729262845917,0.14895915,68410.0,68409.0,0.002]
[1729262846143,0.0001,68416.0,68408.0,0.002]
[1729262846371,0.14895915,68415.0,68408.0,0.002]
[1729262846808,0.14895915,68415.0,68402.0,0.04303579]
[1729262847020,0.14895915,68415.0,68401.0,0.0539966]
[1729262847483,0.14895915,68415.0,68406.0,0.001]
[1729262847703,0.0002,68416.0,68408.0,0.1]
[1729262847935,0.21904685,68414.0,68410.0,0.1]
[1729262848166,0.21904685,68414.0,68413.0,0.002]
[1729262848387,0.21904685,68414.0,68413.0,0.06455369]
[1729262848578,0.0002,68416.0,68410.0,0.1]
[1729262849028,0.0002,68416.0,68410.0,0.10898917]
[1729262849241,0.368006,68415.0,68410.0,0.10898917]
[1729262849454,0.14905915,68415.0,68410.0,0.1]
[1729262850090,0.14905915,68415.0,68414.0,0.00219179]
[1729262851347,0.14988915,68415.0,68414.0,0.00219179]
[1729262851804,0.14988915,68415.0,68414.0,0.00319179]
[1729262852276,0.17288915,68415.0,68414.0,0.00219179]
[1729262852486,0.17288915,68415.0,68414.0,0.00319179]
[1729262853756,0.17088915,68415.0,68414.0,0.00219179]
[1729262854175,0.17088915,68415.0,68414.0,0.00319179]
[1729262854606,0.17088915,68415.0,68414.0,0.00219179]
[1729262854881,0.21722967,68415.0,68414.0,0.00219179]
[1729262855135,0.2490244,68410.0,68390.0,0.21904685]
[1729262855368,0.17195915,68391.0,68390.0,0.21904685]
[1729262855580,0.023,68390.0,68382.0,0.21904685]
[1729262855791,0.023,68390.0,68373.0,0.21904685]
[1729262855792,0.14895915,68388.0,68374.0,0.002]
[1729262856217,0.14895915,68388.0,68380.0,0.002]
[1729262856435,0.21904685,68387.0,68380.0,0.002]
[1729262856646,0.14895915,68386.0,68380.0,0.002]
[1729262856863,0.21904685,68400.0,68380.0,0.002]
[1729262857098,0.21904685,68393.0,68381.0,0.04309536]
[1729262857301,0.14895915,68392.0,68381.0,0.04309536]
[1729262857521,0.14895915,68392.0,68381.0,0.14309536]
[1729262857747,0.14895915,68392.0,68382.0,0.04309536]
[1729262858454,0.0001,68387.0,68381.0,0.14309536]
[1729262858706,0.0001,68387.0,68384.0,0.002]
[1729262859151,0.0001,68387.0,68381.0,0.001]
[1729262859368,0.0001,68387.0,68380.0,0.002]
[1729262859583,0.0001,68387.0,68382.0,0.001]
[1729262859790,0.21904685,68386.0,68382.0,0.001]
[1729262860001,0.21904685,68386.0,68384.0,0.1]
[1729262860229,0.14895915,68385.0,68382.0,0.001]
[1729262860894,0.14895915,68385.0,68380.0,0.002]
[1729262861170,0.14895915,68385.0,68372.0,0.06464305]
[1729262861171,0.21904685,68384.0,68373.0,0.04309536]
[1729262861420,0.14895915,68382.0,68381.0,0.001]
[1729262861634,0.023,68382.0,68381.0,0.001]
[1729262861840,0.21904685,68386.0,68381.0,0.001]
[1729262862059,0.21904685,68386.0,68361.0,0.001658]
[1729262862060,0.023,68385.0,68361.0,0.001658]
[1729262862311,0.023,68385.0,68380.0,0.001]
[1729262862546,0.14895915,68381.0,68380.0,0.001]
[1729262862751,0.17195915,68381.0,68361.0,0.001658]
[1729262862977,0.14895915,68369.0,68362.0,0.21904685]
[1729262863205,0.14895915,68369.0,68368.0,0.00219348]
[1729262864147,0.14895915,68369.0,68361.0,0.001658]
[1729262864377,0.14895915,68368.0,68361.0,0.001658]
[1729262864827,0.21904685,68379.0,68357.0,0.06464305]
[1729262865056,0.21904685,68372.0,68360.0,0.06464305]
[1729262865266,0.14895915,68371.0,68360.0,0.06464305]
[1729262865474,0.21904685,68379.0,68361.0,0.198]
[1729262865475,0.21904685,68365.0,68361.0,0.198]
[1729262865682,0.14895915,68370.0,68362.0,0.1]
[1729262866335,0.21904685,68379.0,68362.0,0.11293386]
[1729262866548,0.14895915,68378.0,68364.0,0.16464305]
[1729262866766,0.21904685,68379.0,68370.0,0.06464305]
[1729262866977,0.21904685,68379.0,68372.0,0.1]
[1729262867202,0.21904685,68379.0,68374.0,0.1]
[1729262867953,0.21904685,68386.0,68380.0,0.00219285]
[1729262868160,0.14895915,68385.0,68380.0,0.00219285]